fUSD/lending_fUSD_20240422
["ID","MTS","AMOUNT","RATE_DAILY","PERIOD"]
[323178227,1713777038502,-46510.15414431,0.00013696,2]
[323178228,1713777038520,-1488.86329916,0.00013696,2]
[323178229,1713777038530,-1369.29431586,0.00013696,2]
[323178230,1713777038541,-377.45473273,0.00013696,2]
[323178315,1713777040615,-7196.88425673,0.00013696,2]
[323178323,1713777040678,-5329.6040552,0.00013696,2]
[323178325,1713777040696,-717.13468249,0.00013696,2]
[323178328,1713777040708,-4138.51515563,0.00013696,2]
[323178425,1713777043090,-1282.47269691,0.00013696,2]
[323178426,1713777043102,-1176.64081656,0.00013696,2]
[323178427,1713777043153,-701.33067573,0.00013696,2]
[323178428,1713777043258,-15701.93553318,0.00013696,2]
[323178429,1713777043268,-2036.75555534,0.00013696,2]
[323178430,1713777043277,-155.0,0.00013696,2]
[323178431,1713777043289,-203.73128511,0.00013696,2]
[323178432,1713777043298,-155.31969641,0.00013696,2]
[323178433,1713777043307,-306.5446371,0.00013696,2]
[323178434,1713777043316,-155.48237327,0.00013696,2]
[323178435,1713777043326,-202.14318475,0.00013696,2]
[323178436,1713777043335,-155.0,0.00013696,2]
[323178437,1713777043345,-638.0,0.00013696,2]
[323178438,1713777043354,-685.54193715,0.00013697,2]
[323178439,1713777043366,-1772.54174572,0.00013697,2]
[323178440,1713777043375,-3758.21349065,0.00013697,2]
[323178441,1713777043384,-241.31291047,0.00013697,2]
[323178442,1713777043393,-328.1423,0.00013697,2]
[323178443,1713777043402,-1622.21320494,0.00013697,2]
[323178444,1713777043412,-674.5696258,0.00013698,2]
[323178445,1713777043421,-500.0,0.00013698,2]
[323178446,1713777043430,-500.0,0.00013698,2]
[323178447,1713777043438,-500.0,0.00013698,2]
[323178448,1713777043447,-500.0,0.00013698,2]
[323178449,1713777043456,-500.0,0.00013698,2]
[323178450,1713777043465,-500.0,0.00013698,2]
[323178451,1713777043474,-500.0,0.00013698,2]
[323178452,1713777043482,-500.0,0.00013698,2]
[323178453,1713777043491,-500.0,0.00013698,2]
[323178454,1713777043501,-465.35189427,0.00013698,2]
[323178455,1713777043510,-500.0,0.00013698,2]
[323178456,1713777043519,-500.0,0.00013698,2]
[323178457,1713777043528,-500.0,0.00013698,2]
[323178458,1713777043537,-500.0,0.00013698,2]
[323178459,1713777043546,-500.0,0.00013698,2]
[323178460,1713777043555,-500.0,0.00013698,2]
[323178461,1713777043565,-500.0,0.00013698,2]
[323178463,1713777043574,-500.0,0.00013698,2]
[323178465,1713777043582,-500.0,0.00013698,2]
[323178466,1713777043591,-500.0,0.00013698,2]
[323178467,1713777043600,-500.0,0.00013698,2]
[323178468,1713777043609,-500.0,0.00013698,2]
[323178469,1713777043619,-730.61,0.00013698,2]
[323178470,1713777043628,-610.55,0.00013698,2]
[323178471,1713777043637,-500.0,0.00013698,2]
[323178472,1713777043646,-500.0,0.00013698,2]
[323178473,1713777043655,-500.0,0.00013698,2]
[323178474,1713777043665,-500.0,0.00013698,2]
[323178475,1713777043674,-500.0,0.00013698,2]
[323178476,1713777043683,-500.0,0.00013698,2]
[323178477,1713777043692,-500.0,0.00013698,2]
[323178478,1713777043701,-500.0,0.00013698,2]
[323178479,1713777043710,-500.0,0.00013698,2]
[323178480,1713777043720,-545.62,0.00013698,2]
[323178481,1713777043729,-500.0,0.00013698,2]
[323178482,1713777043738,-500.0,0.00013698,2]
[323178483,1713777043747,-500.0,0.00013698,2]
[323178484,1713777043757,-500.0,0.00013698,2]
[323178485,1713777043766,-557.14,0.00013698,2]
[323178486,1713777043776,-500.0,0.00013698,2]
[323178487,1713777043785,-986.96,0.00013698,2]
[323178488,1713777043794,-500.0,0.00013698,2]
[323178489,1713777043804,-500.0,0.00013698,2]
[323178490,1713777043813,-201.05644973,0.00013698,2]
[323178491,1713777043822,-500.0,0.00013698,2]
[323178492,1713777043831,-500.0,0.00013698,2]
[323178493,1713777043841,-500.0,0.00013698,2]
[323178494,1713777043850,-500.0,0.00013698,2]
[323178495,1713777043859,-500.0,0.00013698,2]
[323178496,1713777043869,-500.0,0.00013698,2]
[323178497,1713777043879,-509.6,0.00013698,2]
[323178498,1713777043889,-500.0,0.00013698,2]
[323178499,1713777043899,-540.02,0.00013698,2]
[323178500,1713777043909,-500.0,0.00013698,2]
[323178501,1713777043919,-500.0,0.00013698,2]
[323178502,1713777043929,-500.0,0.00013698,2]
[323178503,1713777043938,-500.0,0.00013698,2]
[323178504,1713777043948,-500.0,0.00013698,2]
[323178505,1713777043957,-500.0,0.00013698,2]
[323178506,1713777043966,-642.49,0.00013698,2]
[323178507,1713777043975,-500.0,0.00013698,2]
[323178508,1713777043985,-660.04,0.00013698,2]
[323178509,1713777043994,-500.0,0.00013698,2]
[323178510,1713777044006,-559.34625289,0.00013698,2]
[323178511,1713777044017,-500.0,0.00013698,2]
[323178512,1713777044026,-500.0,0.00013698,2]
[323178513,1713777044035,-500.0,0.00013698,2]
[323178514,1713777044044,-500.0,0.00013698,2]
[323178515,1713777044053,-622.35,0.00013698,2]
[323178516,1713777044062,-254.60821592,0.00013698,2]
[323178517,1713777044071,-500.0,0.00013698,2]
[323178518,1713777044081,-500.0,0.00013698,2]
[323178519,1713777044091,-500.0,0.00013698,2]
[323178520,1713777044099,-500.0,0.00013698,2]
[323178521,1713777044108,-500.0,0.00013698,2]
[323178522,1713777044119,-516.99,0.00013698,2]
[323178523,1713777044128,-500.0,0.00013698,2]
[323178524,1713777044137,-500.0,0.00013698,2]
[323178525,1713777044146,-500.0,0.00013698,2]
[323178526,1713777044154,-813.07,0.00013698,2]
[323178527,1713777044164,-500.0,0.00013698,2]
[323178528,1713777044173,-505.51999233,0.00013698,2]
[323178529,1713777044181,-1006.08,0.00013698,2]
[323178530,1713777044190,-500.0,0.00013698,2]
[323178531,1713777044199,-500.0,0.00013698,2]
[323178532,1713777044208,-500.0,0.00013698,2]
[323178533,1713777044220,-565.87,0.00013698,2]
[323178534,1713777044230,-500.0,0.00013698,2]
[323178535,1713777044239,-500.0,0.00013698,2]
[323178536,1713777044250,-500.0,0.00013698,2]
[323178537,1713777044259,-500.0,0.00013698,2]
[323178538,1713777044268,-510.02,0.00013698,2]
[323178539,1713777044279,-500.0,0.00013698,2]
[323178540,1713777044292,-500.0,0.00013698,2]
[323178541,1713777044302,-500.0,0.00013698,2]
[323178542,1713777044312,-495.15963227,0.00013698,2]
[323178543,1713777044324,-500.0,0.00013698,2]
[323178544,1713777044334,-500.0,0.00013698,2]
[323178545,1713777044344,-500.0,0.00013698,2]
[323178546,1713777044354,-611.68,0.00013698,2]
[323178547,1713777044364,-500.0,0.00013698,2]
[323178548,1713777044671,-550.91599225,0.00013698,2]
[323178549,1713777044682,-500.0,0.00013698,2]
[323178550,1713777044691,-500.0,0.00013698,2]
[323178551,1713777044700,-380.43093816,0.00013698,2]
[323178552,1713777044709,-500.0,0.00013698,2]
[323178553,1713777044719,-714.72,0.00013698,2]
[323178554,1713777044729,-566.77,0.00013698,2]
[323178555,1713777044739,-500.0,0.00013698,2]
[323178556,1713777044749,-500.0,0.00013698,2]
[323178557,1713777044758,-685.25,0.00013698,2]
[323178558,1713777044768,-553.39,0.00013698,2]
[323178559,1713777044777,-500.0,0.00013698,2]
[323178560,1713777044787,-1224.01,0.00013698,2]
[323178561,1713777044796,-538.9920798,0.00013698,2]
[323178562,1713777044805,-500.0,0.00013698,2]
[323178563,1713777044814,-500.0,0.00013698,2]
[323178564,1713777044825,-500.0,0.00013698,2]
[323178565,1713777044834,-1041.78,0.00013698,2]
[323178566,1713777044843,-622.82,0.00013698,2]
[323178567,1713777044852,-500.0,0.00013698,2]
[323178568,1713777044864,-500.0,0.00013698,2]
[323178569,1713777044874,-500.0,0.00013698,2]
[323178570,1713777044883,-500.0,0.00013698,2]
[323178571,1713777044892,-500.0,0.00013698,2]
[323178572,1713777044902,-500.0,0.00013698,2]
[323178573,1713777044911,-500.0,0.00013698,2]
[323178574,1713777044921,-500.0,0.00013698,2]
[323178575,1713777044930,-1216.86,0.00013698,2]
[323178576,1713777044940,-500.0,0.00013698,2]
[323178577,1713777044948,-500.0,0.00013698,2]
[323178578,1713777044958,-500.0,0.00013698,2]
[323178579,1713777044969,-500.0,0.00013698,2]
[323178580,1713777044979,-500.0,0.00013698,2]
[323178581,1713777044988,-500.0,0.00013698,2]
[323178582,1713777044999,-658.58,0.00013698,2]
[323178583,1713777045009,-922.79,0.00013698,2]
[323178584,1713777045020,-706.44,0.00013698,2]
[323178585,1713777045031,-500.0,0.00013698,2]
[323178586,1713777045041,-500.0,0.00013698,2]
[323178587,1713777045050,-501.1,0.00013698,2]
[323178588,1713777045059,-500.0,0.00013698,2]
[323178589,1713777045069,-500.0,0.00013698,2]
[323178590,1713777045079,-500.0,0.00013698,2]
[323178591,1713777045090,-500.0,0.00013698,2]
[323178592,1713777045101,-609.69424788,0.00013698,2]
[323178593,1713777045112,-500.0,0.00013698,2]
[323178594,1713777045122,-500.0,0.00013698,2]
[323178595,1713777045131,-500.0,0.00013698,2]
[323178596,1713777045141,-500.0,0.00013698,2]
[323178597,1713777045150,-500.0,0.00013698,2]
[323178598,1713777045159,-518.43,0.00013698,2]
[323178599,1713777045169,-500.0,0.00013698,2]
[323178600,1713777045178,-500.0,0.00013698,2]
[323178601,1713777045189,-500.0,0.00013698,2]
[323178602,1713777045199,-500.0,0.00013698,2]
[323178603,1713777045209,-500.0,0.00013698,2]
[323178604,1713777045218,-500.0,0.00013698,2]
[323178605,1713777045227,-500.0,0.00013698,2]
[323178606,1713777045236,-500.0,0.00013698,2]
[323178607,1713777045246,-500.0,0.00013698,2]
[323178608,1713777045255,-500.0,0.00013698,2]
[323178609,1713777045264,-500.0,0.00013698,2]
[323178610,1713777045273,-1462.18,0.00013698,2]
[323178611,1713777045285,-500.0,0.00013698,2]
[323178612,1713777045298,-583.77,0.00013698,2]
[323178613,1713777045307,-500.0,0.00013698,2]
[323178614,1713777045320,-500.0,0.00013698,2]
[323178615,1713777045329,-582.42875007,0.00013698,2]
[323178616,1713777045340,-500.0,0.00013698,2]
[323178617,1713777045350,-500.0,0.00013698,2]
[323178618,1713777045359,-500.0,0.00013698,2]
[323178619,1713777045371,-500.0,0.00013698,2]
[323178620,1713777045381,-500.0,0.00013698,2]
[323178621,1713777045391,-500.0,0.00013698,2]
[323178622,1713777045401,-577.94426708,0.00013698,2]
[323178623,1713777045411,-500.0,0.00013698,2]
[323178624,1713777045422,-500.0,0.00013698,2]
[323178625,1713777045432,-500.0,0.00013698,2]
[323178626,1713777045442,-500.0,0.00013698,2]
[323178627,1713777045453,-500.0,0.00013698,2]
[323178628,1713777045462,-500.0,0.00013698,2]
[323178629,1713777045472,-516.71,0.00013698,2]
[323178630,1713777045481,-500.0,0.00013698,2]
[323178631,1713777045491,-500.0,0.00013698,2]
[323178632,1713777045499,-422.85307307,0.00013698,2]
[323178633,1713777045509,-500.0,0.00013698,2]
[323178634,1713777045517,-500.0,0.00013698,2]
[323178635,1713777045526,-736.21,0.00013698,2]
[323178636,1713777045536,-500.0,0.00013698,2]
[323178637,1713777045545,-500.0,0.00013698,2]
[323178638,1713777045554,-500.0,0.00013698,2]
[323178639,1713777045563,-631.42,0.00013698,2]
[323178640,1713777045572,-500.0,0.00013698,2]
[323178641,1713777045581,-534.76,0.00013698,2]
[323178642,1713777045591,-2102.28,0.00013698,2]
[323178643,1713777045600,-500.0,0.00013698,2]
[323178644,1713777045610,-592.41,0.00013698,2]
[323178645,1713777045620,-609.27,0.00013698,2]
[323178646,1713777045629,-595.60435055,0.00013698,2]
[323178647,1713777045638,-500.0,0.00013698,2]
[323178648,1713777045648,-500.0,0.00013698,2]
[323178649,1713777045657,-500.0,0.00013698,2]
[323178651,1713777045666,-500.0,0.00013698,2]
[323178652,1713777045675,-500.0,0.00013698,2]
[323178653,1713777045685,-500.0,0.00013698,2]
[323178654,1713777045694,-500.0,0.00013698,2]
[323178655,1713777045703,-500.0,0.00013698,2]
[323178656,1713777045712,-500.0,0.00013698,2]
[323178657,1713777045721,-500.0,0.00013698,2]
[323178658,1713777045730,-500.0,0.00013698,2]
[323178659,1713777045739,-1362.23,0.00013698,2]
[323178660,1713777045749,-225.50594665,0.00013698,2]
[323178661,1713777045758,-996.9,0.00013698,2]
[323178662,1713777045768,-506.1,0.00013698,2]
[323178663,1713777045778,-500.0,0.00013698,2]
[323178664,1713777045787,-1172.82,0.00013698,2]
[323178665,1713777045796,-628.49,0.00013698,2]
[323178666,1713777045805,-500.0,0.00013698,2]
[323178667,1713777045815,-662.59,0.00013698,2]
[323178669,1713777045824,-1166.28,0.00013698,2]
[323178670,1713777045834,-502.30529921,0.00013698,2]
[323178672,1713777045843,-573.14,0.00013698,2]
[323178674,1713777045852,-500.0,0.00013698,2]
[323178675,1713777045861,-551.61,0.00013698,2]
[323178676,1713777045873,-551.87,0.00013698,2]
[323178677,1713777045882,-500.0,0.00013698,2]
[323178678,1713777045891,-500.0,0.00013698,2]
[323178679,1713777045900,-892.3,0.00013698,2]
[323178680,1713777045909,-502.41708429,0.00013698,2]
[323178681,1713777045918,-1425.6,0.00013698,2]
[323178682,1713777045927,-500.0,0.00013698,2]
[323178683,1713777045936,-500.0,0.00013698,2]
[323178684,1713777045945,-500.0,0.00013698,2]
[323178685,1713777045954,-505.09,0.00013698,2]
[323178686,1713777045963,-500.0,0.00013698,2]
[323178687,1713777045972,-500.0,0.00013698,2]
[323178688,1713777045981,-705.04,0.00013698,2]
[323178689,1713777045991,-500.0,0.00013698,2]
[323178690,1713777045999,-500.0,0.00013698,2]
[323178691,1713777046008,-1200.04,0.00013698,2]
[323178692,1713777046018,-515.07,0.00013698,2]
[323178693,1713777046028,-2072.43,0.00013698,2]
[323178694,1713777046037,-373.17466913,0.00013698,2]
[323178695,1713777046046,-500.0,0.00013698,2]
[323178696,1713777046055,-538.77084543,0.00013698,2]
[323178697,1713777046064,-500.0,0.00013698,2]
[323178698,1713777046074,-551.41,0.00013698,2]
[323178699,1713777046083,-772.3,0.00013698,2]
[323178700,1713777046093,-698.13,0.00013698,2]
[323178701,1713777046102,-501.60784862,0.00013698,2]
[323178702,1713777046111,-543.08,0.00013698,2]
[323178703,1713777046121,-2220.99,0.00013698,2]
[323178704,1713777046130,-520.66,0.00013698,2]
[323178705,1713777046139,-500.0,0.00013698,2]
[323178706,1713777046148,-1458.55,0.00013698,2]
[323178707,1713777046157,-575.25,0.00013698,2]
[323178708,1713777046166,-500.0,0.00013698,2]
[323178709,1713777046176,-500.0,0.00013698,2]
[323178710,1713777046185,-500.0,0.00013698,2]
[323178711,1713777046193,-768.11,0.00013698,2]
[323178712,1713777046202,-500.0,0.00013698,2]
[323178713,1713777046211,-500.0,0.00013698,2]
[323178714,1713777046221,-507.95,0.00013698,2]
[323178715,1713777046230,-500.0,0.00013698,2]
[323178716,1713777046239,-500.0,0.00013698,2]
[323178717,1713777046248,-500.0,0.00013698,2]
[323178718,1713777046257,-500.0,0.00013698,2]
[323178719,1713777046266,-737.72,0.00013698,2]
[323178720,1713777046276,-668.72,0.00013698,2]
[323178721,1713777046286,-914.88,0.00013698,2]
[323178722,1713777046297,-589.31,0.00013698,2]
[323178723,1713777046307,-500.0,0.00013698,2]
[323178724,1713777046316,-500.0,0.00013698,2]
[323178725,1713777046329,-527.24,0.00013698,2]
[323178726,1713777046340,-500.0,0.00013698,2]
[323178727,1713777046349,-603.53,0.00013698,2]
[323178728,1713777046360,-500.0,0.00013698,2]
[323178729,1713777046369,-1459.79,0.00013698,2]
[323178730,1713777046379,-1467.73481408,0.00013698,2]
[323178731,1713777047295,-704.56281299,0.00013697,2]
[323178732,1713777047707,-593.20775096,0.00013697,2]
[323178733,1713777047716,-6.79224904,0.00013698,2]
[323178734,1713777047727,-816.59524035,0.00013698,2]
[323178735,1713777047739,-22.73769653,0.00013698,2]
[323178736,1713777047749,-500.0,0.00013698,2]
[323178737,1713777047758,-351.14789839,0.00013698,2]
[323178738,1713777047770,-326.39210161,0.00013698,2]
[323178739,1713777047779,-500.0,0.00013698,2]
[323178740,1713777047788,-69.61789839,0.00013698,2]
[323178741,1713777047805,-430.38210161,0.00013698,2]
[323178742,1713777047814,-801.77,0.00013698,2]
[323178743,1713777047823,-500.0,0.00013698,2]
[323178744,1713777047833,-500.0,0.00013698,2]
[323178745,1713777047842,-521.48,0.00013698,2]
[323178746,1713777047852,-500.0,0.00013698,2]
[323178747,1713777047862,-500.0,0.00013698,2]
[323178748,1713777047873,-511.5424489,0.00013698,2]
[323178749,1713777047900,-132.9775511,0.00013698,2]
[323178750,1713777047909,-502.33028563,0.00013698,2]
[323178751,1713777047920,-818.29216327,0.00013698,2]
[323178752,1713777048050,-1102.44976513,0.00013698,2]
[323178753,1713777060166,151.65,0.00010526,2]
[323178756,1713777072955,749.26852786,0.00012326,2]
[323178759,1713777122977,886.56812948,0.00012527,2]
[323178761,1713777136696,4000.0,0.00015,3]
[323178765,1713777215701,200.0,0.00012505,2]
[323178766,1713777223758,318.77,0.00010587,2]
[323178768,1713777239464,388.175957,0.00012656,2]
[323178769,1713777278543,535.54285785,0.00012525,2]
[323178770,1713777278564,102.78714215,0.00012525,2]
[323178771,1713777278736,638.33,0.00012528,2]
[323178772,1713777278858,638.33,0.00012531,2]
[323178773,1713777278968,638.33,0.00012535,2]
[323178774,1713777279134,638.33,0.00012538,2]
[323178775,1713777279201,638.33,0.00012541,2]
[323178776,1713777279279,638.33,0.00012545,2]
[323178777,1713777279459,67.23285785,0.00012548,2]
[323178778,1713777279481,571.09714215,0.00012548,2]
[323178779,1713777279873,638.33,0.00012551,2]
[323178780,1713777280096,638.33,0.00012554,2]
[323178781,1713777280391,638.33,0.00012558,2]
[323178782,1713777280661,638.33,0.00012561,2]
[323178783,1713777280723,638.33,0.00012564,2]
[323178784,1713777281131,237.25285785,0.00012568,2]
[323178785,1713777281155,401.07714215,0.00012568,2]
[323178786,1713777281323,638.33,0.00012571,2]
[323178787,1713777281554,638.33,0.00012574,2]
[323178788,1713777281771,638.33,0.00012578,2]
[323178789,1713777282015,638.33,0.00012581,2]
[323178790,1713777282620,638.33,0.00012584,2]
[323178791,1713777282688,407.27285785,0.00012587,2]
[323178792,1713777282713,231.05714215,0.00012587,2]
[323178793,1713777300806,351.72,0.00012595,2]
[323178794,1713777300960,351.72,0.0001263,2]
[323178795,1713777301067,351.72,0.00012664,2]
[323178796,1713777301145,351.72,0.00012699,2]
[323178802,1713777381276,564.54,0.00012047,2]
[323178807,1713777449902,162.69,0.00012082,2]
[323178809,1713777472890,248.75,0.00012073,2]
[323178814,1713777513433,530.38232376,0.000127,2]
[323178816,1713777525441,855.70053409,0.000127,2]
[323178817,1713777525463,1359.6270049,0.000127,2]
[323178819,1713777535028,565.34977281,0.000127,2]
[323178820,1713777536255,155.0,0.000127,2]
[323178821,1713777540553,408.40214741,0.000127,2]
[323178822,1713777542984,151.65,9.675e-05,2]
[323178823,1713777543380,376.80702448,0.000127,2]
[323178824,1713777544761,983.1640504,0.00012093,2]
[323178825,1713777544783,223.8059496,0.00012093,2]
[323178827,1713777552194,533.08858317,0.000127,2]
[323178828,1713777558637,174.41917523,0.000127,2]
[323178830,1713777570452,495.44,0.00012093,2]
[323178831,1713777572008,1000.0,0.00012,2]
[323178839,1713777689461,302.83,0.00010155,2]
[323178840,1713777689654,302.83,0.00012419,2]
[323178841,1713777693936,343.31159121,0.000127,2]
[323178842,1713777702095,167.34808462,0.000127,2]
[323178844,1713777704706,456.92661617,0.000127,2]
[323178845,1713777704728,3493.3355449,0.000127,2]
[323178847,1713777709600,506.6644551,0.00012078,2]
[323178848,1713777709621,601.5855449,0.00012078,2]
[323178851,1713777734591,150.0,0.00015,15]
[323178853,1713777745344,250.0,0.00012097,2]
[323178858,1713777777525,163.7828373,0.00012605,2]
[323178860,1713777794203,281.37,0.00012405,2]
[323178861,1713777794410,281.37,0.00012439,2]
[323178862,1713777794630,281.37,0.00012473,2]
[323178863,1713777794926,281.37,0.00012507,2]
[323178864,1713777795093,281.37,0.00012541,2]
[323178865,1713777795303,281.37,0.00012575,2]
[323178866,1713777795702,281.37,0.00012609,2]
[323178867,1713777795932,281.37,0.00012643,2]
[323178868,1713777796418,281.37,0.00012677,2]
[323178879,1713777859914,376.80702448,0.000127,2]
[323178880,1713777862074,75.49459332,0.000127,2]
[323178881,1713777862096,841.59584898,0.000127,2]
[323178884,1713777872192,3158.40415102,0.000127,2]
[323178885,1713777872214,1163.96093757,0.000127,2]
[323178895,1713777926692,548.36,0.00012074,2]
[323178899,1713777945447,611.3936282,0.000127,2]
[323178901,1713777960104,167.34808462,0.000127,2]
[323178905,1713778019040,150.52987329,0.0001592,15]
[323178906,1713778025093,509.49469017,0.000127,2]
[323178909,1713778092694,4382.7800079,0.000127,10]
[323178910,1713778112708,2921.8533386,0.000127,10]
[323178916,1713778132705,2434.87778216,0.000127,10]
[323178924,1713778148777,1268.57132451,0.000127,10]
[323178930,1713778167765,80000.0,0.000224,30]
[323178931,1713778168712,1268.57132451,0.000127,10]
[323178938,1713778191731,1268.57132451,0.000127,10]
[323178939,1713778201359,738.5,0.00012024,2]
[323178941,1713778210459,3074.12,0.00013151,14]
[323178943,1713778213410,1268.57132451,0.000127,10]
[323178949,1713778232076,-259.94301548,0.00012702,2]
[323178950,1713778232089,-249.55167469,0.00012702,2]
[323178951,1713778232101,-826.40327721,0.00012703,2]
[323178952,1713778232150,-873.58,0.00012703,2]
[323178953,1713778232190,-1137.58543701,0.00012703,2]
[323178958,1713778232526,-1662.43128578,0.00012703,2]
[323178959,1713778232536,-994.83530772,0.00012706,2]
[323178960,1713778232581,-737.77704635,0.00012706,2]
[323178961,1713778232595,-5569.70061886,0.00012706,2]
[323178962,1713778232605,-281.37,0.00012711,2]
[323178963,1713778232616,-163.78283726,0.00012733,2]
[323178964,1713778232626,-281.37,0.00012745,2]
[323178965,1713778232638,-281.37,0.00012779,2]
[323178966,1713778232648,-281.37,0.00012813,2]
[323178967,1713778232659,-281.37,0.00012847,2]
[323178968,1713778232669,-499.99,0.00012851,2]
[323178969,1713778232681,-150.99,0.00012851,2]
[323178970,1713778232691,-85.12181586,0.00012861,2]
[323178971,1713778232702,-78.6610214,0.00012861,2]
[323178972,1713778232713,-281.37,0.00012881,2]
[323178973,1713778232724,-281.37,0.00012915,2]
[323178974,1713778232735,-500.0,0.00012917,2]
[323178975,1713778232745,-1000.0,0.00012917,2]
[323178976,1713778232754,-154.7872,0.00012917,2]
[323178977,1713778232764,-632.0947,0.00012917,2]
[323178978,1713778232774,-281.37,0.00012949,2]
[323178979,1713778232785,-281.37,0.00012984,2]
[323178980,1713778232795,-163.78283726,0.00012989,2]
[323178981,1713778232804,-750.0,0.00013,2]
[323178982,1713778232813,-9128.36239876,0.00013017,2]
[323178983,1713778232826,-562.34159793,0.00013017,2]
[323178984,1713778232852,-1604.30848172,0.00013017,2]
[323178985,1713778232864,-121891.15252043,0.00013017,2]
[323178986,1713778232898,-9240.55695824,0.00013017,2]
[323178987,1713778232910,-313.94261921,0.00013017,2]
[323178988,1713778232922,-4903.46776207,0.00013017,2]
[323178989,1713778233106,1268.57132451,0.000127,10]
[323178998,1713778238028,-1368.56705426,0.00013017,2]
[323178999,1713778238040,-819.390416,0.00013017,2]
[323179000,1713778238051,-2143.77423767,0.00013017,2]
[323179001,1713778238087,-82469.83083027,0.00013017,2]
[323179002,1713778238098,-10554.30512344,0.00013017,2]
[323179003,1713778238108,-1000.0,0.00013017,2]
[323179004,1713778238117,-281.37,0.00013018,2]
[323179005,1713778238127,-104.32487656,0.00013025,2]
[323179006,1713778238138,-831.075,0.00013025,2]
[323179007,1713778238202,-112578.44787941,0.00013025,2]
[323179008,1713778238212,-167.29,0.0001303,2]
[323179009,1713778238221,-281.37,0.00013052,2]
[323179010,1713778238230,-29861.9285,0.00013059,2]
[323179011,1713778238240,-231.6571,0.00013089,2]
[323179012,1713778238250,-311.56254225,0.000131,2]
[323179013,1713778238259,-376.17934934,0.000131,2]
[323179014,1713778238268,-1680.27210088,0.000131,2]
[323179015,1713778238278,-105000.0,0.0001311,2]
[323179016,1713778238287,-132363.57905716,0.00013117,2]
[323179017,1713778238296,-163.78283726,0.00013117,2]
[323179018,1713778238306,-3845.0,0.00013187,2]
[323179019,1713778238315,-255.3668917,0.00013187,2]
[323179020,1713778238324,-213.89673121,0.00013187,2]
[323179021,1713778238333,-155.0,0.00013187,2]
[323179022,1713778238343,-1788.02595548,0.00013187,2]
[323179023,1713778238352,-2220.42461465,0.00013187,2]
[323179024,1713778238362,-192.93151442,0.00013187,2]
[323179025,1713778238372,-411.75031749,0.00013187,2]
[323179026,1713778238382,-155.0,0.00013187,2]
[323179027,1713778238391,-363.42483292,0.00013187,2]
[323179028,1713778238400,-243.60508632,0.00013187,2]
[323179029,1713778238410,-342.46465823,0.00013187,2]
[323179030,1713778238419,-375.5818353,0.00013187,2]
[323179031,1713778238429,-2185.86360756,0.00013187,2]
[323179033,1713778238438,-168.78908351,0.00013187,2]
[323179035,1713778238447,-185.56957774,0.00013187,2]
[323179037,1713778238456,-157.04510012,0.00013188,2]
[323179039,1713778238466,-283.31314188,0.00013188,2]
[323179041,1713778238475,-325.27031537,0.00013188,2]
[323179043,1713778238485,-244470.83913807,0.00013189,2]
[323179045,1713778238497,-562.99630196,0.00013189,2]